fUST/lending_fUST_20250727
["ID","MTS","AMOUNT","RATE_DAILY","PERIOD"]
[375282338,1753615866996,-460.0,0.00020547,2]
[375282339,1753615867007,-460.0,0.00020547,2]
[375282340,1753615867016,-460.0,0.00020547,2]
[375282341,1753615867025,-460.0,0.00020547,2]
[375282342,1753615867035,-151.0,0.00020568,2]
[375282343,1753615867046,-501.57043918,0.00020568,2]
[375282344,1753615867056,-1500.0,0.00020568,2]
[375282345,1753615867066,-1003.65022164,0.00020568,2]
[375282346,1753615867076,-150.0,0.00020586,2]
[375282347,1753615867087,-214.84090509,0.0002059,3]
[375282348,1753615867097,-160.0,0.0002059,3]
[375282349,1753615867107,-160.0,0.0002059,3]
[375282350,1753615867117,-12632.25855046,0.0002059,3]
[375282351,1753615867129,-626.0,0.00020667,2]
[375282352,1753615867138,-420.0,0.00020678,2]
[375282353,1753615867147,-260.0,0.00020678,2]
[375282354,1753615867157,-477.07289566,0.00020728,3]
[375282355,1753615867167,-2848.85961,0.00020728,3]
[375282356,1753615867267,-500.0,0.0002081,2]
[375282357,1753615867276,-1141.24026091,0.00020816,2]
[375282358,1753615867287,-2000.0,0.00020816,2]
[375282359,1753615867297,-500.0,0.00020816,2]
[375282360,1753615867306,-1229.32766538,0.00020816,2]
[375282361,1753615867316,-460.0,0.00020821,2]
[375282362,1753615867325,-460.0,0.00020821,2]
[375282363,1753615867334,-460.0,0.00020821,2]
[375282364,1753615867343,-460.0,0.00020821,2]
[375282365,1753615867353,-467.09929477,0.00020821,2]
[375282366,1753615867362,-460.0,0.00020821,2]
[375282367,1753615867371,-1311.09,0.00020821,2]
[375282368,1753615867380,-305.9298994,0.00020821,2]
[375282369,1753615867390,-460.0,0.00020821,2]
[375282370,1753615867399,-460.0,0.00020821,2]
[375282371,1753615867408,-460.0,0.00020821,2]
[375282372,1753615867418,-460.0,0.00020821,2]
[375282373,1753615867426,-460.0,0.00020821,2]
[375282374,1753615867435,-460.0,0.00020821,2]
[375282375,1753615867445,-1237.56,0.00020821,2]
[375282376,1753615867454,-460.0,0.00020821,2]
[375282377,1753615867463,-460.0,0.00020821,2]
[375282378,1753615867473,-460.0,0.00020821,2]
[375282379,1753615867481,-1780.04,0.00020821,2]
[375282380,1753615867492,-460.0,0.00020821,2]
[375282381,1753615867501,-460.0,0.00020821,2]
[375282382,1753615867510,-460.0,0.00020821,2]
[375282383,1753615867524,-460.0,0.00020821,2]
[375282384,1753615867535,-460.0,0.00020821,2]
[375282385,1753615867545,-460.0,0.00020821,2]
[375282386,1753615867554,-460.0,0.00020821,2]
[375282387,1753615867563,-460.0,0.00020821,2]
[375282388,1753615867573,-460.0,0.00020821,2]
[375282389,1753615867583,-460.0,0.00020821,2]
[375282390,1753615867593,-151.0,0.00020821,2]
[375282391,1753615867603,-460.0,0.00020821,2]
[375282392,1753615867614,-460.0,0.00020821,2]
[375282393,1753615867623,-460.0,0.00020821,2]
[375282394,1753615867633,-252.30153891,0.00020821,2]
[375282395,1753615867644,-460.0,0.00020821,2]
[375282396,1753615867654,-460.0,0.00020821,2]
[375282397,1753615867663,-460.0,0.00020821,2]
[375282398,1753615867673,-460.0,0.00020821,2]
[375282399,1753615867682,-460.0,0.00020821,2]
[375282400,1753615867691,-460.0,0.00020821,2]
[375282401,1753615867701,-460.0,0.00020821,2]
[375282402,1753615867711,-628.25,0.00020821,2]
[375282403,1753615867720,-460.0,0.00020821,2]
[375282404,1753615867730,-151.0,0.00020821,2]
[375282405,1753615867739,-460.0,0.00020821,2]
[375282406,1753615867748,-588.88,0.00020821,2]
[375282407,1753615867758,-460.0,0.00020821,2]
[375282408,1753615867767,-460.0,0.00020821,2]
[375282409,1753615867777,-460.0,0.00020821,2]
[375282410,1753615867787,-460.0,0.00020821,2]
[375282411,1753615867795,-460.0,0.00020821,2]
[375282412,1753615867804,-482.95,0.00020821,2]
[375282413,1753615867814,-460.0,0.00020821,2]
[375282414,1753615867824,-460.0,0.00020821,2]
[375282415,1753615867833,-460.0,0.00020821,2]
[375282416,1753615867843,-460.0,0.00020821,2]
[375282417,1753615867853,-460.0,0.00020821,2]
[375282418,1753615867863,-460.0,0.00020821,2]
[375282419,1753615867873,-460.0,0.00020821,2]
[375282420,1753615867883,-567.09393117,0.00020821,2]
[375282421,1753615867892,-460.0,0.00020821,2]
[375282422,1753615867901,-460.0,0.00020821,2]
[375282423,1753615867910,-460.0,0.00020821,2]
[375282424,1753615867919,-482.47140842,0.00020821,2]
[375282425,1753615867929,-460.0,0.00020821,2]
[375282426,1753615867939,-460.0,0.00020821,2]
[375282427,1753615867948,-460.0,0.00020821,2]
[375282428,1753615867957,-481.11,0.00020821,2]
[375282429,1753615867966,-460.0,0.00020821,2]
[375282430,1753615867975,-700.52,0.00020821,2]
[375282431,1753615867985,-460.0,0.00020821,2]
[375282432,1753615867995,-522.64,0.00020821,2]
[375282433,1753615868003,-460.0,0.00020821,2]
[375282434,1753615868013,-473.84,0.00020821,2]
[375282435,1753615868022,-460.0,0.00020821,2]
[375282436,1753615868031,-460.0,0.00020821,2]
[375282437,1753615868041,-460.0,0.00020821,2]
[375282438,1753615868050,-460.0,0.00020821,2]
[375282439,1753615868060,-460.0,0.00020821,2]
[375282440,1753615868069,-473.02162169,0.00020821,2]
[375282441,1753615868078,-460.0,0.00020821,2]
[375282442,1753615868088,-460.0,0.00020821,2]
[375282443,1753615868097,-460.0,0.00020821,2]
[375282444,1753615868106,-460.0,0.00020821,2]
[375282445,1753615868115,-262.04817577,0.00020821,2]
[375282446,1753615868125,-460.0,0.00020821,2]
[375282447,1753615868134,-2233.63,0.00020821,2]
[375282448,1753615868144,-460.0,0.00020821,2]
[375282449,1753615868153,-413.00346532,0.00020821,2]
[375282450,1753615868163,-1630.4,0.00020821,2]
[375282451,1753615868172,-460.0,0.00020821,2]
[375282452,1753615868181,-151.0,0.00020821,2]
[375282453,1753615868191,-772.54,0.00020821,2]
[375282454,1753615868200,-460.0,0.00020821,2]
[375282455,1753615868209,-460.0,0.00020821,2]
[375282456,1753615868219,-565.5,0.00020821,2]
[375282457,1753615868228,-460.0,0.00020821,2]
[375282458,1753615868237,-460.0,0.00020821,2]
[375282459,1753615868246,-460.0,0.00020821,2]
[375282460,1753615868255,-460.0,0.00020821,2]
[375282461,1753615868263,-466.14,0.00020821,2]
[375282462,1753615868272,-460.0,0.00020821,2]
[375282463,1753615868281,-554.36,0.00020821,2]
[375282464,1753615868291,-460.0,0.00020821,2]
[375282465,1753615868300,-460.0,0.00020821,2]
[375282466,1753615868309,-939.82,0.00020821,2]
[375282467,1753615868318,-2047.96,0.00020821,2]
[375282468,1753615868326,-1111.37,0.00020821,2]
[375282469,1753615868335,-460.0,0.00020821,2]
[375282470,1753615868344,-1411.8,0.00020821,2]
[375282471,1753615868353,-601.19,0.00020821,2]
[375282472,1753615868362,-460.0,0.00020821,2]
[375282473,1753615868370,-460.0,0.00020821,2]
[375282474,1753615868380,-460.0,0.00020821,2]
[375282475,1753615868389,-460.0,0.00020821,2]
[375282476,1753615868398,-460.0,0.00020821,2]
[375282477,1753615868407,-460.0,0.00020821,2]
[375282478,1753615868416,-460.0,0.00020821,2]
[375282479,1753615868425,-734.55,0.00020821,2]
[375282480,1753615868434,-460.0,0.00020821,2]
[375282481,1753615868442,-817.55,0.00020821,2]
[375282482,1753615868451,-460.0,0.00020821,2]
[375282483,1753615868460,-460.0,0.00020821,2]
[375282484,1753615868469,-1243.43,0.00020821,2]
[375282485,1753615868478,-460.0,0.00020821,2]
[375282486,1753615868487,-460.0,0.00020821,2]
[375282487,1753615868495,-460.0,0.00020821,2]
[375282488,1753615868504,-471.24816989,0.00020821,2]
[375282489,1753615868514,-460.0,0.00020821,2]
[375282490,1753615868526,-460.0,0.00020821,2]
[375282491,1753615868535,-460.0,0.00020821,2]
[375282492,1753615868544,-460.0,0.00020821,2]
[375282493,1753615868553,-460.0,0.00020821,2]
[375282494,1753615868563,-460.0,0.00020821,2]
[375282495,1753615868572,-460.0,0.00020821,2]
[375282496,1753615868581,-470.12877595,0.00020821,2]
[375282497,1753615868589,-4262.34,0.00020821,2]
[375282498,1753615868600,-460.0,0.00020821,2]
[375282499,1753615868609,-3803.86,0.00020821,2]
[375282500,1753615868618,-151.0,0.00020821,2]
[375282501,1753615868627,-471.21,0.00020821,2]
[375282502,1753615868636,-492.93,0.00020821,2]
[375282503,1753615868645,-1381.0,0.00020821,2]
[375282504,1753615868654,-460.0,0.00020821,2]
[375282505,1753615868662,-1164.21,0.00020821,2]
[375282506,1753615868672,-460.0,0.00020821,2]
[375282507,1753615868681,-460.0,0.00020821,2]
[375282508,1753615868690,-460.0,0.00020821,2]
[375282509,1753615868699,-635.9,0.00020821,2]
[375282510,1753615868708,-1473.58,0.00020821,2]
[375282511,1753615868717,-460.0,0.00020821,2]
[375282512,1753615868726,-460.0,0.00020821,2]
[375282513,1753615868735,-460.0,0.00020821,2]
[375282514,1753615868744,-460.0,0.00020821,2]
[375282515,1753615868753,-460.0,0.00020821,2]
[375282516,1753615868762,-460.0,0.00020821,2]
[375282517,1753615868771,-460.0,0.00020821,2]
[375282518,1753615868780,-460.0,0.00020821,2]
[375282519,1753615868790,-202.28049207,0.00020821,2]
[375282520,1753615868799,-460.0,0.00020821,2]
[375282521,1753615868808,-460.0,0.00020821,2]
[375282522,1753615868818,-1500.0,0.00020868,2]
[375282523,1753615868826,-1505.62611828,0.00020868,2]
[375282524,1753615868835,-1503.65121091,0.00020868,2]
[375282525,1753615868844,-1500.0,0.00020868,2]
[375282526,1753615868853,-1500.0,0.00020868,2]
[375282527,1753615868862,-506.53430223,0.00020868,2]
[375282528,1753615868871,-2848.85961,0.00020934,4]
[375282529,1753615868880,-3000.0,0.00021,2]
[375282530,1753615868889,-741.14122082,0.00021,2]
[375282531,1753615868899,-289.10496442,0.00021,2]
[375282532,1753615868908,-3000.0,0.0002101,2]
[375282533,1753615868917,-151.0,0.0002101,2]
[375282534,1753615868926,-151.0,0.0002101,2]
[375282535,1753615868935,-151.0,0.0002101,2]
[375282536,1753615868944,-178.419688,0.0002101,2]
[375282537,1753615868953,-178.419688,0.0002101,2]
[375282538,1753615868962,-3388.19593408,0.00021016,2]
[375282539,1753615868971,-3000.0,0.0002102,2]
[375282540,1753615868980,-3000.0,0.0002103,2]
[375282541,1753615868990,-2091.35341261,0.00021039,2]
[375282542,1753615868999,-3000.0,0.0002104,2]
[375282543,1753615869008,-3000.0,0.0002105,2]
[375282544,1753615869017,-3000.0,0.0002106,2]
[375282545,1753615869027,-503.78824934,0.00021068,2]
[375282546,1753615869036,-3000.0,0.0002107,2]
[375282547,1753615869047,-3000.0,0.0002108,2]
[375282548,1753615869056,-500.0,0.00021084,2]
[375282549,1753615869065,-500.0,0.00021087,2]
[375282550,1753615869075,-3000.0,0.0002109,2]
[375282551,1753615869085,-151.600414,0.00021095,2]
[375282552,1753615869095,-460.0,0.00021095,2]
[375282553,1753615869104,-460.0,0.00021095,2]
[375282554,1753615869113,-460.0,0.00021095,2]
[375282555,1753615869123,-1311.09,0.00021095,2]
[375282556,1753615869132,-460.0,0.00021095,2]
[375282557,1753615869141,-460.0,0.00021095,2]
[375282558,1753615869151,-460.0,0.00021095,2]
[375282559,1753615869160,-460.0,0.00021095,2]
[375282560,1753615869169,-460.0,0.00021095,2]
[375282561,1753615869178,-460.0,0.00021095,2]
[375282562,1753615869188,-1237.56,0.00021095,2]
[375282563,1753615869197,-460.0,0.00021095,2]
[375282564,1753615869206,-460.0,0.00021095,2]
[375282565,1753615869215,-1780.04,0.00021095,2]
[375282566,1753615869225,-460.0,0.00021095,2]
[375282567,1753615869234,-460.0,0.00021095,2]
[375282568,1753615869243,-460.0,0.00021095,2]
[375282569,1753615869253,-460.0,0.00021095,2]
[375282570,1753615869262,-460.0,0.00021095,2]
[375282571,1753615869271,-151.0,0.00021095,2]
[375282572,1753615869281,-151.0,0.00021095,2]
[375282573,1753615869292,-460.0,0.00021095,2]
[375282574,1753615869302,-460.0,0.00021095,2]
[375282575,1753615869312,-460.0,0.00021095,2]
[375282576,1753615869321,-460.0,0.00021095,2]
[375282577,1753615869331,-460.0,0.00021095,2]
[375282578,1753615869340,-460.0,0.00021095,2]
[375282579,1753615869349,-221.51565665,0.00021095,2]
[375282580,1753615869358,-460.0,0.00021095,2]
[375282581,1753615869368,-460.0,0.00021095,2]
[375282582,1753615869377,-465.96684877,0.00021095,2]
[375282583,1753615869386,-460.0,0.00021095,2]
[375282584,1753615869395,-460.0,0.00021095,2]
[375282585,1753615869404,-460.0,0.00021095,2]
[375282586,1753615869414,-628.25,0.00021095,2]
[375282587,1753615869423,-460.0,0.00021095,2]
[375282588,1753615869431,-466.68674085,0.00021095,2]
[375282589,1753615869441,-588.88,0.00021095,2]
[375282590,1753615869450,-460.0,0.00021095,2]
[375282591,1753615869461,-460.0,0.00021095,2]
[375282592,1753615869471,-460.0,0.00021095,2]
[375282593,1753615869481,-460.0,0.00021095,2]
[375282594,1753615869491,-482.95,0.00021095,2]
[375282595,1753615869500,-460.0,0.00021095,2]
[375282596,1753615869511,-460.0,0.00021095,2]
[375282597,1753615869525,-460.0,0.00021095,2]
[375282598,1753615869534,-460.0,0.00021095,2]
[375282599,1753615869545,-460.0,0.00021095,2]
[375282600,1753615869555,-460.0,0.00021095,2]
[375282601,1753615869564,-460.0,0.00021095,2]
[375282602,1753615869573,-460.0,0.00021095,2]
[375282603,1753615869582,-151.0,0.00021095,2]
[375282604,1753615869591,-460.0,0.00021095,2]
[375282605,1753615869601,-460.0,0.00021095,2]
[375282606,1753615869610,-151.0,0.00021095,2]
[375282607,1753615869619,-151.0,0.00021095,2]
[375282608,1753615869628,-460.0,0.00021095,2]
[375282609,1753615869638,-460.0,0.00021095,2]
[375282610,1753615869647,-460.0,0.00021095,2]
[375282611,1753615869656,-481.11,0.00021095,2]
[375282612,1753615869665,-460.0,0.00021095,2]
[375282613,1753615869675,-700.52,0.00021095,2]
[375282614,1753615869684,-1158.903073,0.00021095,2]
[375282615,1753615869694,-460.0,0.00021095,2]
[375282616,1753615869703,-522.64,0.00021095,2]
[375282617,1753615869712,-1158.903073,0.00021095,2]
[375282618,1753615869721,-460.0,0.00021095,2]
[375282619,1753615869731,-473.84,0.00021095,2]
[375282620,1753615869740,-460.0,0.00021095,2]
[375282621,1753615869750,-460.0,0.00021095,2]
[375282622,1753615869759,-460.0,0.00021095,2]
[375282623,1753615869768,-452.79079048,0.00021095,2]
[375282624,1753615869777,-460.0,0.00021095,2]
[375282625,1753615869786,-460.0,0.00021095,2]
[375282626,1753615869797,-460.0,0.00021095,2]
[375282627,1753615869807,-460.0,0.00021095,2]
[375282628,1753615869816,-460.0,0.00021095,2]
[375282629,1753615869826,-460.0,0.00021095,2]
[375282630,1753615869836,-2233.63,0.00021095,2]
[375282631,1753615869845,-460.0,0.00021095,2]
[375282632,1753615869854,-1630.4,0.00021095,2]
[375282633,1753615869863,-772.54,0.00021095,2]
[375282634,1753615869873,-460.0,0.00021095,2]
[375282635,1753615869882,-460.0,0.00021095,2]
[375282636,1753615869892,-565.5,0.00021095,2]
[375282637,1753615869902,-460.0,0.00021095,2]
[375282638,1753615869911,-460.0,0.00021095,2]
[375282639,1753615869920,-460.0,0.00021095,2]
[375282640,1753615869929,-460.0,0.00021095,2]
[375282641,1753615869938,-466.14,0.00021095,2]
[375282642,1753615869948,-554.36,0.00021095,2]
[375282643,1753615869957,-460.0,0.00021095,2]
[375282644,1753615869966,-460.0,0.00021095,2]
[375282645,1753615869976,-939.82,0.00021095,2]
[375282646,1753615869985,-2047.96,0.00021095,2]
[375282647,1753615869995,-1111.37,0.00021095,2]
[375282648,1753615870003,-601.19,0.00021095,2]
[375282649,1753615870013,-1411.8,0.00021095,2]
[375282650,1753615870022,-460.0,0.00021095,2]
[375282651,1753615870031,-460.0,0.00021095,2]
[375282652,1753615870042,-460.0,0.00021095,2]
[375282653,1753615870051,-460.0,0.00021095,2]
[375282654,1753615870150,-460.0,0.00021095,2]
[375282655,1753615870174,-734.55,0.00021095,2]
[375282656,1753615870185,-817.55,0.00021095,2]
[375282657,1753615870196,-460.0,0.00021095,2]
[375282658,1753615870205,-460.0,0.00021095,2]
[375282659,1753615870215,-1243.43,0.00021095,2]
[375282660,1753615870224,-460.0,0.00021095,2]
[375282661,1753615870234,-460.0,0.00021095,2]
[375282662,1753615870247,-460.0,0.00021095,2]
[375282663,1753615870257,-460.0,0.00021095,2]
[375282664,1753615870266,-460.0,0.00021095,2]
[375282665,1753615870275,-460.0,0.00021095,2]
[375282666,1753615870284,-460.0,0.00021095,2]
[375282667,1753615870295,-460.0,0.00021095,2]
[375282668,1753615870305,-4262.34,0.00021095,2]
[375282669,1753615870315,-460.0,0.00021095,2]
[375282670,1753615870324,-3803.86,0.00021095,2]
[375282671,1753615870334,-471.21,0.00021095,2]
[375282672,1753615870344,-492.93,0.00021095,2]
[375282673,1753615870355,-1381.0,0.00021095,2]
[375282674,1753615870365,-1164.21,0.00021095,2]
[375282675,1753615870375,-460.0,0.00021095,2]
[375282676,1753615870385,-460.0,0.00021095,2]
[375282677,1753615870396,-460.0,0.00021095,2]
[375282678,1753615870407,-635.9,0.00021095,2]
[375282679,1753615870417,-1473.58,0.00021095,2]
[375282680,1753615870428,-460.0,0.00021095,2]
[375282681,1753615870437,-471.9289856,0.00021095,2]
[375282682,1753615870447,-460.0,0.00021095,2]
[375282683,1753615870456,-460.0,0.00021095,2]
[375282684,1753615870466,-460.0,0.00021095,2]
[375282685,1753615870477,-460.0,0.00021095,2]
[375282686,1753615870488,-460.0,0.00021095,2]
[375282687,1753615870498,-460.0,0.00021095,2]
[375282688,1753615870507,-460.0,0.00021095,2]
[375282689,1753615870522,-3000.0,0.000211,2]
[375282690,1753615870532,-3000.0,0.0002111,2]
[375282691,1753615870542,-2000.0,0.00021116,2]
[375282692,1753615870551,-3000.0,0.0002112,2]
[375282693,1753615870562,-3000.0,0.0002113,2]
[375282694,1753615870571,-3000.0,0.0002114,2]
[375282695,1753615870581,-2848.85961,0.00021141,4]
[375282696,1753615870591,-3000.0,0.0002115,2]
[375282697,1753615870601,-3000.0,0.0002116,2]
[375282698,1753615870611,-500.0,0.00021164,2]
[375282699,1753615870621,-3000.0,0.0002117,2]
[375282700,1753615870631,-3000.0,0.0002118,2]
[375282701,1753615870640,-3000.0,0.0002119,2]
[375282702,1753615870650,-151.0,0.0002119,2]
[375282703,1753615870659,-3000.0,0.000212,2]
[375282704,1753615870668,-904.418,0.00021207,2]
[375282705,1753615870678,-3000.0,0.0002121,2]
[375282706,1753615870687,-3000.0,0.0002122,2]
[375282707,1753615870697,-190.384102,0.0002122,2]
[375282708,1753615870706,-360.0,0.00021226,2]
[375282709,1753615870716,-3000.0,0.0002123,2]
[375282710,1753615870726,-3000.0,0.0002124,2]
[375282711,1753615870735,-3000.0,0.0002125,2]
[375282712,1753615870745,-3000.0,0.0002126,2]
[375282713,1753615870756,-3000.0,0.0002127,2]
[375282714,1753615870765,-969.0,0.00021274,2]
[375282715,1753615870774,-421.197,0.00021274,2]
[375282716,1753615870783,-2158.0,0.00021274,2]
[375282717,1753615870795,-3000.0,0.0002128,2]
[375282718,1753615870805,-3000.0,0.0002129,2]
[375282719,1753615870814,-3000.0,0.000213,2]
[375282720,1753615870824,-3000.0,0.0002131,2]
[375282721,1753615870834,-151.0,0.0002131,2]
[375282722,1753615870843,-3150.0,0.0002132,2]
[375282723,1753615870854,-2848.85961,0.00021348,5]
[375282724,1753615870864,-25000.0,0.00021353,2]
[375282725,1753615870873,-151.0,0.00021353,2]
[375282726,1753615870882,-502.05411089,0.00021353,2]
[375282727,1753615870892,-151.0,0.00021353,2]
[375282728,1753615870901,-151.0,0.00021353,2]
[375282729,1753615870910,-151.0,0.00021353,2]
[375282730,1753615870920,-151.0,0.00021353,2]
[375282731,1753615870930,-151.0,0.00021353,2]
[375282732,1753615870940,-151.0,0.00021353,2]
[375282733,1753615870949,-151.0,0.00021353,2]
[375282734,1753615870958,-151.0,0.00021353,2]
[375282735,1753615870967,-151.0,0.00021353,2]
[375282736,1753615870977,-151.0,0.00021353,2]
[375282737,1753615870987,-151.0,0.00021353,2]
[375282738,1753615870996,-291.18913902,0.00021353,2]
[375282739,1753615871005,-151.0,0.00021353,2]
[375282740,1753615871014,-151.0,0.00021353,2]
[375282741,1753615871024,-151.0,0.00021353,2]
[375282742,1753615871033,-151.0,0.00021353,2]
[375282743,1753615871043,-151.0,0.00021353,2]
[375282744,1753615871052,-151.0,0.00021353,2]
[375282745,1753615871062,-151.0,0.00021353,2]
[375282746,1753615871071,-151.0,0.00021353,2]
[375282747,1753615871081,-151.0,0.00021353,2]
[375282748,1753615871091,-151.0,0.00021353,2]
[375282749,1753615871101,-151.0,0.00021353,2]
[375282750,1753615871110,-151.0,0.00021353,2]
[375282751,1753615871121,-151.0,0.00021353,2]
[375282752,1753615871131,-151.0,0.00021353,2]
[375282753,1753615871141,-151.0,0.00021353,2]
[375282754,1753615871150,-164.544173,0.00021353,2]
[375282755,1753615871159,-151.0,0.00021353,2]
[375282756,1753615871168,-151.0,0.00021353,2]
[375282757,1753615871178,-151.0,0.00021353,2]
[375282758,1753615871187,-270.27902396,0.00021353,2]
[375282759,1753615871198,-151.0,0.00021353,2]
[375282760,1753615871207,-6536.16983842,0.00021353,2]
[375282761,1753615871217,-151.0,0.00021353,2]
[375282762,1753615871227,-151.0,0.00021353,2]
[375282763,1753615871238,-151.0,0.00021353,2]
[375282764,1753615871250,-151.0,0.00021353,2]
[375282765,1753615871260,-151.0,0.00021353,2]
[375282766,1753615871270,-151.0,0.00021353,2]
[375282767,1753615871279,-151.0,0.00021353,2]
[375282768,1753615871291,-151.0,0.00021353,2]
[375282769,1753615871301,-3801.642,0.00021353,2]
[375282770,1753615871312,-151.0,0.00021353,2]
[375282771,1753615871322,-151.0,0.00021353,2]
[375282772,1753615871332,-500.0,0.00021358,2]
[375282773,1753615871342,-1540.87434324,0.00021364,2]
[375282774,1753615871351,-460.0,0.00021369,2]
[375282775,1753615871360,-460.0,0.00021369,2]
[375282776,1753615871370,-474.43027526,0.00021369,2]
[375282777,1753615871380,-1311.09,0.00021369,2]
[375282778,1753615871389,-460.0,0.00021369,2]
[375282779,1753615871398,-460.0,0.00021369,2]
[375282780,1753615871407,-460.0,0.00021369,2]
[375282781,1753615871417,-1237.56,0.00021369,2]
[375282782,1753615871426,-460.0,0.00021369,2]
[375282783,1753615871435,-460.0,0.00021369,2]
[375282784,1753615871444,-1780.04,0.00021369,2]
[375282785,1753615871454,-460.0,0.00021369,2]
[375282786,1753615871463,-460.0,0.00021369,2]
[375282787,1753615871473,-405.28946272,0.00021369,2]
[375282788,1753615871482,-460.0,0.00021369,2]
[375282789,1753615871491,-460.0,0.00021369,2]
[375282790,1753615871501,-460.0,0.00021369,2]
[375282791,1753615871510,-460.0,0.00021369,2]
[375282792,1753615871522,-460.0,0.00021369,2]
[375282793,1753615871531,-268.594645,0.00021369,2]
[375282794,1753615871541,-460.0,0.00021369,2]
[375282795,1753615871550,-460.0,0.00021369,2]
[375282796,1753615871560,-460.0,0.00021369,2]
[375282797,1753615871569,-460.0,0.00021369,2]
[375282798,1753615871579,-460.0,0.00021369,2]
[375282799,1753615871588,-460.0,0.00021369,2]
[375282800,1753615871597,-460.0,0.00021369,2]
[375282801,1753615871609,-628.25,0.00021369,2]
[375282802,1753615871618,-588.88,0.00021369,2]
[375282803,1753615871627,-460.0,0.00021369,2]
[375282804,1753615871636,-460.0,0.00021369,2]
[375282805,1753615871645,-460.0,0.00021369,2]
[375282806,1753615871654,-482.95,0.00021369,2]
[375282807,1753615871664,-460.0,0.00021369,2]
[375282808,1753615871673,-460.0,0.00021369,2]
[375282809,1753615871682,-460.0,0.00021369,2]
[375282810,1753615871693,-460.0,0.00021369,2]
[375282811,1753615871703,-460.0,0.00021369,2]
[375282812,1753615871712,-460.0,0.00021369,2]
[375282813,1753615871722,-460.0,0.00021369,2]
[375282814,1753615871731,-460.0,0.00021369,2]
[375282815,1753615871740,-460.0,0.00021369,2]
[375282816,1753615871749,-460.0,0.00021369,2]
[375282817,1753615871760,-460.0,0.00021369,2]
[375282818,1753615871771,-460.0,0.00021369,2]
[375282819,1753615871781,-481.11,0.00021369,2]
[375282820,1753615871793,-460.0,0.00021369,2]
[375282821,1753615871802,-700.52,0.00021369,2]
[375282822,1753615871812,-460.0,0.00021369,2]
[375282823,1753615871821,-522.64,0.00021369,2]
[375282824,1753615871831,-460.0,0.00021369,2]
[375282825,1753615871840,-473.84,0.00021369,2]
[375282826,1753615871850,-460.0,0.00021369,2]
[375282827,1753615871859,-460.0,0.00021369,2]
[375282828,1753615871869,-460.0,0.00021369,2]
[375282829,1753615871878,-151.0,0.00021369,2]
[375282830,1753615871888,-151.0,0.00021369,2]
[375282831,1753615871897,-460.0,0.00021369,2]
[375282832,1753615871907,-460.0,0.00021369,2]
[375282833,1753615871916,-460.0,0.00021369,2]
[375282834,1753615871926,-460.0,0.00021369,2]
[375282835,1753615871936,-460.0,0.00021369,2]
[375282836,1753615871945,-2233.63,0.00021369,2]
[375282837,1753615871954,-460.0,0.00021369,2]